bitfinex/quotes_ETHUSD_20240717
["timestamp","ask_amount","ask_price","bid_price","bid_amount"]
[1721238667324,0.07053467,3413.0,3412.3,5.45055]
[1721238670829,0.07053467,3413.0,3412.6,2.93026]
[1721238671261,5.37928,3413.5,3412.7,2.93021]
[1721238671558,2.4497,3413.5,3412.7,2.93021]
[1721238671858,0.07057118,3413.4,3412.7,2.93021]
[1721238672030,3.00021118,3413.4,3412.5,2.93031]
[1721238672540,3.00021118,3413.4,3412.5,5.86064]
[1721238672731,3.00021118,3413.4,3412.5,2.93031]
[1721238673119,2.92985,3413.2,3412.3,5.45053]
[1721238673345,0.07053557,3413.1,3412.3,5.45053]
[1721238673522,0.07053557,3413.1,3412.4,2.93048]
[1721238674133,0.07053557,3413.1,3412.4,5.8609]
[1721238674339,5.37929,3413.5,3412.6,2.9303]
[1721238674558,0.07057118,3413.4,3412.6,2.93025]
[1721238674919,0.07057118,3413.4,3412.7,2.93021]
[1721238675322,0.07057118,3413.4,3412.9,2.93004]
[1721238675839,0.07057118,3413.4,3413.0,2.92995]
[1721238676228,2.2662,3413.8,3413.0,2.92995]
[1721238676763,0.07062732,3413.7,3413.0,2.92995]
[1721238677119,0.07062732,3413.7,3412.8,2.93013]
[1721238677334,0.07062732,3413.7,3412.8,5.8602]
[1721238677537,0.07062732,3413.7,3412.8,5.86014]
[1721238677766,0.07062732,3413.7,3412.8,5.86015]
[1721238677968,0.07062732,3413.7,3412.8,2.93007]
[1721238678172,0.07062732,3413.7,3412.9,2.93]
[1721238678596,0.07062732,3413.7,3413.0,2.92996]
[1721238679666,0.07062732,3413.7,3413.1,2.92987]
[1721238682652,0.07062732,3413.7,3412.9,2.93005]
[1721238682653,0.42828128,3413.7,3412.9,2.93005]
[1721238682978,0.42828128,3413.7,3412.9,2.92998]
[1721238682979,0.07062732,3413.7,3412.9,2.92998]
[1721238683684,2.92947,3413.6,3412.8,2.93008]
[1721238683884,0.07062732,3413.7,3412.9,2.93003]
[1721238684047,0.07065976,3413.5,3412.9,2.93003]
[1721238684248,0.07067163,3413.6,3412.9,2.93001]
[1721238684471,0.07064789,3413.4,3413.0,2.92992]
[1721238684785,5.19551,3413.8,3413.0,2.92992]
[1721238684786,0.07063602,3413.3,3413.0,2.92992]
[1721238685086,5.19551,3413.8,3413.0,2.92992]
[1721238685644,0.07062415,3413.2,3413.0,2.92992]
[1721238685894,5.19551,3413.8,3413.0,2.92992]
[1721238686261,0.07068349,3413.7,3413.0,2.92992]
[1721238686482,0.07068349,3413.7,3412.5,9.83241804]
[1721238686483,2.9914,3413.6,3412.5,7.37901804]
[1721238686699,5.92092,3413.6,3412.7,2.93023]
[1721238686968,0.07074784,3413.5,3412.7,2.93023]
[1721238687701,3.00030784,3413.5,3412.7,2.93023]
[1721238689102,0.07074784,3413.5,3412.8,2.93012]
[1721238690672,0.07074784,3413.5,3412.8,2.93007]
[1721238692261,0.07074784,3413.5,3412.8,5.86016]
[1721238694207,0.07070217,3413.3,3412.9,2.93005]
[1721238694383,0.07070217,3413.3,3413.1,1.052]
[1721238694585,0.68271668,3413.3,3413.1,1.052]
[1721238695176,0.07070217,3413.3,3413.1,1.052]
[1721238695700,0.61201451,3413.2,3413.1,1.052]
[1721238695871,0.68270482,3413.2,3413.1,1.052]
[1721238696509,0.07069031,3413.2,3413.1,1.052]
[1721238696680,0.91802177,3413.3,3413.1,1.052]
[1721238696887,0.07069031,3413.2,3413.1,1.052]
[1721238697199,0.61457277,3413.2,3413.1,1.052]
[1721238697368,0.68527541,3413.2,3413.1,3.98188]
[1721238697575,0.07070264,3413.2,3413.1,3.98188]
[1721238697771,0.68543347,3413.2,3413.1,3.98188]
[1721238697998,0.07070264,3413.2,3413.1,3.98188]
[1721238698307,0.91802177,3413.3,3413.1,3.98188]
[1721238698674,0.68561063,3413.2,3413.1,7.602953]
[1721238699014,0.61490799,3413.4,3413.3,2.92971]
[1721238699170,1.89222074,3413.4,3413.3,3.98171]
[1721238699374,2.26605678,3413.4,3413.3,3.98171]
[1721238699724,0.07072226,3413.4,3413.3,3.98171]
[1721238700008,0.98874403,3413.4,3413.0,2.92989]
[1721238700211,0.61510254,3413.1,3413.0,3.98189]
[1721238700570,2.27077438,3413.1,3413.0,3.98189]
[1721238700772,0.68589582,3413.1,3413.0,3.98189]
[1721238701720,0.07073322,3413.1,3413.0,3.98189]
[1721238701935,0.99338704,3413.1,3413.0,3.98189]
[1721238702467,0.07073322,3413.1,3413.0,3.98189]
[1721238704421,0.92265382,3413.2,3413.1,2.92988]
[1721238704585,2.20001238,3413.2,3413.1,2.92988]
[1721238704774,2.27075747,3413.2,3413.1,2.92988]
[1721238705109,1.34810365,3413.2,3413.1,2.92988]
[1721238705301,2.27089818,3413.2,3413.1,2.92988]
[1721238706018,0.99353962,3413.2,3413.1,5.85976]
[1721238706221,0.68591864,3413.2,3413.1,6.84395]
[1721238707608,0.68591864,3413.2,3413.1,9.14725]
[1721238707833,0.07074509,3413.2,3413.1,9.14725]
[1721238708197,0.61517355,3413.3,3413.2,5.8596]
[1721238708397,0.61517355,3413.3,3413.2,6.9116]
[1721238709041,0.92279453,3413.4,3413.3,2.92971]
[1721238709240,1.22402903,3413.5,3413.4,2.92963]
[1721238709421,1.27729675,3413.5,3413.4,3.98163]
[1721238710392,1.27729675,3413.5,3413.4,7.602403]
[1721238710597,1.5377533,3413.8,3413.4,4.014943]
[1721238710598,0.9224753,3413.7,3413.4,4.014943]
[1721238710931,0.61490043,3413.9,3413.8,5.85856]
[1721238711131,0.61490043,3413.9,3413.8,6.91056]
[1721238711132,0.68312495,3413.9,3413.8,6.91056]
[1721238711333,0.06822452,3413.9,3413.8,6.91056]
[1721238712196,0.06822452,3413.9,3413.8,5.85856]
[1721238712400,0.06822452,3413.9,3413.8,9.381861]
[1721238712910,0.9224753,3414.4,3414.1,2.92902]
[1721238712911,0.61490043,3414.3,3414.1,2.92902]
[1721238713244,0.06866859,3414.2,3414.1,5.85804]
[1721238713600,0.61490043,3414.4,3414.3,2.92885]
[1721238715222,0.61490043,3414.5,3414.3,2.92885]
[1721238715433,0.61490043,3414.5,3414.4,2.92877]
[1721238716748,0.61490043,3414.5,3414.4,5.19707]
[1721238716954,0.61490043,3414.5,3414.4,8.12584]
[1721238717124,0.61490043,3414.6,3414.5,2.92868]
[1721238717334,0.61490043,3414.8,3414.6,2.92853]
[1721238717605,0.61490043,3414.9,3414.6,2.92853]
[1721238717918,0.61490043,3414.8,3414.6,2.92853]
[1721238718241,0.61490043,3415.0,3414.6,2.92853]
[1721238718436,0.61490043,3414.9,3414.6,2.92853]
[1721238718829,0.61490043,3415.0,3414.7,2.92849]
[1721238719026,0.61490043,3415.3,3414.7,2.523]
[1721238719225,0.61490043,3415.3,3415.2,2.92808]
[1721238719413,0.61490043,3415.6,3415.2,2.92808]
[1721238719812,0.06673575,3415.5,3415.2,2.92808]
[1721238721026,0.06673575,3415.5,3415.3,2.92799]
[1721238721444,0.06673575,3415.5,3415.4,2.92791]
[1721238721750,0.06673593,3415.5,3415.4,2.92791]
[1721238721921,0.61490043,3415.8,3415.5,2.92778]
[1721238722116,0.06670929,3415.7,3415.6,2.92774]
[1721238722364,0.9224753,3416.1,3415.6,2.92774]
[1721238722365,0.61490043,3416.0,3415.6,2.92774]
[1721238722574,0.06682099,3415.9,3415.5,2.92778]
[1721238722871,0.06682099,3415.9,3415.8,2.92757]
[1721238723234,0.61490043,3416.5,3415.9,2.9274]
[1721238723466,0.61490043,3416.6,3415.9,2.9274]
[1721238723625,0.06678926,3416.4,3415.9,2.9274]
[1721238723824,0.0668286,3416.5,3416.0,2.92738]
[1721238724021,0.06681178,3416.3,3416.0,2.92738]
[1721238724222,0.06682362,3416.4,3415.8,5.85507]
[1721238724426,0.06679993,3416.2,3415.9,2.92748]
[1721238724634,0.06681178,3416.3,3415.9,2.92748]
[1721238724863,2.2849,3416.7,3415.9,2.92748]
[1721238724864,0.06680183,3416.1,3415.9,2.92748]
[1721238725158,0.06678998,3416.0,3415.9,2.92748]
[1721238725364,2.2849,3416.7,3415.9,2.92748]
[1721238725535,0.06686106,3416.6,3415.9,2.92748]
[1721238727023,0.06686106,3416.6,3415.8,2.9275]
[1721238727228,0.06686106,3416.6,3415.6,5.3686]
[1721238727665,0.06686106,3416.6,3415.9,2.92745]
[1721238729434,2.99376106,3416.6,3415.8,2.92755]
[1721238730474,3.47704,3416.5,3415.5,5.45081]
[1721238730669,0.55,3416.5,3415.6,2.92772]
[1721238730880,0.06691878,3416.4,3415.7,2.92763]
[1721238731242,2.92697,3416.5,3415.7,2.92763]
[1721238731437,0.06690694,3416.3,3415.7,2.92763]
[1721238731641,0.06691878,3416.4,3415.7,2.92763]
[1721238731885,0.06689509,3416.2,3415.7,2.92763]
[1721238732051,0.06690694,3416.3,3415.7,2.92763]
[1721238732372,0.06689509,3416.2,3415.7,2.92763]
[1721238732576,2.92697,3416.5,3415.7,2.92763]
[1721238732793,2.92749,3415.9,3414.9,5.35897]
[1721238733102,2.54036392,3415.8,3414.9,2.92827]
[1721238733471,2.54036392,3415.8,3415.0,2.9282]
[1721238733659,0.06686392,3415.8,3415.1,2.92814]
[1721238734001,2.4735,3416.2,3414.8,2.92837]
[1721238734182,2.92757,3415.8,3414.9,2.92829]
[1721238734385,0.06671332,3415.7,3415.0,2.92821]
[1721238734695,0.06671332,3415.7,3414.8,2.92837]
[1721238734896,0.06671332,3415.7,3415.0,2.92823]
[1721238735474,5.40076,3416.2,3414.7,2.523]
[1721238735678,0.06676038,3415.6,3415.3,2.92797]
[1721238735905,2.9275,3415.9,3414.9,2.92826]
[1721238736062,0.06673596,3415.5,3414.9,2.92826]
[1721238736262,2.9275,3415.9,3415.0,2.92824]
[1721238736460,0.06674925,3415.4,3414.8,2.92835]
[1721238736662,2.9275,3415.9,3414.9,2.92833]
[1721238737297,2.4478,3415.6,3414.6,2.4307]
[1721238737486,2.4478,3415.6,3413.8,1.131101]
[1721238737487,2.92791,3415.5,3414.5,2.92868]
[1721238737675,2.99465219,3415.5,3414.5,2.92868]
[1721238739060,2.92804,3415.3,3414.5,2.92868]
[1721238739407,0.0667355,3415.2,3414.3,2.92884]
[1721238739581,2.9948155,3415.2,3414.4,2.92875]
[1721238739782,2.9948155,3415.2,3414.4,4.309949]
[1721238739977,2.92819,3415.1,3414.2,4.9544]
[1721238740200,0.06665819,3415.0,3414.2,4.9544]
[1721238740616,0.06665819,3415.0,3414.3,2.9288]
[1721238740934,0.06665819,3415.0,3414.3,2.92877]
[1721238741217,0.06665819,3415.0,3414.5,2.92868]
[1721238741378,0.06665819,3415.0,3414.6,0.292868]
[1721238741581,5.3756,3415.6,3414.7,2.92851]
[1721238741808,0.06676557,3415.5,3414.7,2.92851]
[1721238742072,2.99460557,3415.5,3414.7,2.92851]
[1721238742271,0.06676557,3415.5,3414.8,5.2587]
[1721238742675,2.9277,3415.7,3414.8,5.2587]
[1721238742878,0.06677574,3415.4,3414.9,2.92832]
[1721238743078,5.1956,3415.9,3414.9,2.92828]
[1721238743427,2.92757,3415.8,3415.0,2.92822]
[1721238743642,2.99439314,3415.8,3415.0,2.92822]
[1721238746918,2.92781,3415.6,3414.6,2.92856]
[1721238747215,2.99240425,3415.5,3414.7,2.92851]
[1721238748128,2.99240425,3415.5,3414.5,5.85726]
[1721238748329,0.06451425,3415.5,3414.4,5.40772]
[1721238748535,2.92814,3415.2,3414.4,2.479]
[1721238748919,2.92814,3415.2,3414.5,2.92868]
[1721238748920,0.06442929,3415.1,3414.5,2.92868]
[1721238750199,0.06442929,3415.1,3414.4,2.479]
[1721238750718,0.06442929,3415.1,3414.4,5.40771]
[1721238752238,0.06442929,3415.1,3414.5,2.92866]
[1721238753146,0.06442929,3415.1,3414.5,4.014574]
[1721238753350,0.61490043,3415.5,3414.7,5.85688]
[1721238753522,0.06446485,3415.4,3414.7,5.85688]
[1721238754049,0.06446485,3415.4,3414.7,2.92843]
[1721238754246,0.06446485,3415.4,3414.7,5.85689]
[1721238754560,0.06446485,3415.4,3414.7,5.85687]
[1721238754849,0.61490043,3415.5,3414.7,5.85687]
[1721238755049,0.06445299,3415.3,3414.8,2.92842]
[1721238755209,0.06446485,3415.4,3414.8,3.6226994]
[1721238755944,0.67936528,3415.4,3414.8,3.6226994]
[1721238756132,0.67936528,3415.4,3414.8,2.92842]
[1721238756341,0.61490043,3415.3,3414.8,2.92842]
[1721238756538,0.06444114,3415.2,3414.8,2.92842]
[1721238756846,0.61490043,3415.3,3414.8,2.92842]
[1721238757048,0.06442929,3415.1,3414.8,2.92842]
[1721238757228,0.06444114,3415.2,3414.8,2.92842]
[1721238757570,0.61490043,3415.2,3414.8,2.92842]
[1721238757781,0.06443738,3415.1,3414.8,2.92842]
[1721238758118,0.61490043,3415.3,3414.8,2.92842]
[1721238758377,0.67910363,3415.2,3414.8,2.92842]
[1721238759566,0.67910363,3415.2,3414.8,3.6227154]
[1721238761570,0.61490043,3415.1,3414.4,2.92874]
[1721238761730,0.67930399,3415.0,3414.5,2.92862]
[1721238761934,0.67930399,3415.0,3414.6,2.92857]
[1721238763096,0.67930399,3415.0,3414.4,2.9287]
[1721238763272,0.61490043,3414.9,3414.4,2.9287]
[1721238763706,0.06437298,3414.8,3414.5,2.92868]
[1721238764159,0.61490043,3415.0,3414.5,2.92868]
[1721238764359,0.06438208,3414.9,3414.4,2.92872]
[1721238764609,0.67928251,3414.9,3414.5,2.92862]
[1721238764789,0.06438208,3414.9,3414.6,2.92859]
[1721238765192,0.06438208,3414.9,3414.6,5.37199]
[1721238765404,0.06438208,3414.9,3414.7,2.523]
[1721238768716,0.06438208,3414.9,3414.7,5.4515]
[1721238768865,0.06438208,3414.9,3414.7,6.6423351]
[1721238770590,0.06438208,3414.9,3414.8,5.85684]
[1721238770829,0.61490043,3415.3,3414.9,2.92826]
[1721238771116,0.61490043,3415.3,3414.8,2.92842]
[1721238771117,0.0644025,3415.2,3415.0,2.92824]
[1721238771471,0.61490043,3415.3,3415.0,2.92824]
[1721238771709,0.06439064,3415.1,3415.0,3.88528951]
[1721238771867,0.61490043,3415.4,3415.1,2.92814]
[1721238772275,0.06441435,3415.3,3415.1,2.92814]
[1721238773217,0.67931478,3415.3,3415.2,2.92808]
[1721238773365,0.06441435,3415.3,3415.2,5.91650695]
[1721238773577,0.61490043,3415.5,3415.3,2.92793]
[1721238773894,0.61490043,3415.5,3415.4,2.92791]
[1721238774101,0.61490043,3415.6,3415.5,2.92782]
[1721238774910,0.61490043,3415.9,3415.6,2.92766]
[1721238775211,0.61490043,3415.8,3415.6,2.92766]
[1721238776170,0.61490043,3415.7,3415.6,2.92766]
[1721238776833,0.61490043,3415.7,3415.6,3.765508]
[1721238776974,0.61490043,3415.9,3415.7,2.92765]
[1721238777175,0.61375877,3416.0,3415.8,2.92757]
[1721238777393,0.61375877,3415.9,3415.8,2.92757]
[1721238777865,0.61375877,3416.0,3415.8,2.92757]
[1721238778014,0.61375877,3416.1,3415.8,2.92757]
[1721238778791,0.9224753,3416.2,3415.8,2.92757]
[1721238778792,0.61375877,3416.0,3415.8,2.92757]
[1721238779112,0.9224753,3416.2,3415.8,2.92757]
[1721238779113,0.61375877,3416.1,3415.8,2.92757]
[1721238782214,0.61375877,3416.2,3415.8,2.92757]
[1721238783115,0.61375877,3416.2,3415.9,2.523]
[1721238783318,0.61375877,3416.2,3416.1,2.92731]
[1721238783480,1.22402903,3416.6,3416.1,2.92731]
[1721238783481,0.61375877,3416.3,3416.1,2.92731]
[1721238784318,0.61375877,3416.4,3416.2,2.92721]
[1721238784758,0.61375877,3416.6,3416.2,2.92721]
[1721238785051,0.61375877,3416.5,3416.2,2.92721]
[1721238785206,0.61375877,3416.6,3416.2,2.92721]
[1721238786348,0.06250857,3416.5,3416.2,2.92721]
[1721238787339,0.06250857,3416.5,3416.4,2.92705]
[1721238788013,0.61375877,3416.9,3416.4,2.92705]
[1721238788211,0.06256059,3416.8,3416.4,2.92705]
[1721238788414,0.61375877,3417.0,3416.4,2.92705]
[1721238788708,0.06257243,3416.9,3416.4,2.92705]
[1721238788909,0.06257243,3416.9,3416.5,2.92691]
[1721238789334,0.06257243,3416.9,3416.8,2.92671]
[1721238789530,0.06257243,3416.9,3416.8,5.30471]
[1721238789747,0.9224753,3417.4,3416.9,2.92656]
[1721238789748,0.61375877,3417.4,3416.9,2.92656]
[1721238789949,0.61375877,3417.4,3417.0,2.92652]
[1721238790150,4.14989903,3417.8,3417.0,2.92652]
[1721238790151,0.06279811,3417.3,3417.0,2.92652]
[1721238790393,0.06279811,3417.3,3417.1,2.523]
[1721238790665,0.9224753,3417.7,3417.1,2.523]
[1721238790666,0.06271169,3417.2,3417.1,2.523]
[1721238791020,0.9224753,3417.8,3417.1,2.523]
[1721238791021,0.61375877,3417.6,3417.1,2.523]
[1721238791264,0.06250744,3417.5,3417.1,2.523]
[1721238791616,0.61375877,3417.8,3417.1,2.523]
[1721238791955,2.9885869,3417.7,3417.1,2.523]
[1721238792157,0.0626269,3417.7,3417.1,2.523]
[1721238792684,3.53953877,3417.9,3417.1,2.523]
[1721238792962,0.0626182,3417.6,3417.1,2.523]
[1721238793162,0.61375877,3417.8,3417.1,2.523]
[1721238793316,0.06260636,3417.5,3417.1,2.523]
[1721238793514,2.92587,3417.8,3417.1,2.523]
[1721238794054,0.06259767,3417.7,3417.1,2.523]
[1721238796551,0.06259767,3417.7,3417.3,2.92623]
[1721238796850,6.1734253,3418.2,3417.3,2.92623]
[1721238796851,0.06260785,3417.6,3417.3,2.92623]
[1721238797022,2.92555,3418.2,3417.3,2.92623]
[1721238797223,0.06022786,3418.1,3417.6,2.92601]
[1721238797552,2.92538,3418.4,3417.6,2.92601]
[1721238797751,0.05818602,3418.0,3417.7,2.4484]
[1721238798047,0.05843528,3417.9,3417.7,2.4484]
[1721238798248,2.92538,3418.4,3417.7,2.4484]
[1721238798466,0.05848261,3418.3,3417.7,2.4484]
[1721238804474,2.98393261,3418.3,3417.7,2.4484]
[1721238806142,2.92585,3417.9,3417.3,2.4999]
[1721238806357,2.92589,3417.8,3417.3,2.4999]
[1721238806560,2.98436659,3417.8,3417.3,2.4999]
[1721238807761,0.05847659,3417.8,3417.3,2.4999]
[1721238808178,5.85152,3418.0,3417.3,2.4999]
[1721238808386,0.05853239,3417.7,3417.4,2.92618]
[1721238808606,0.05851787,3417.6,3417.4,3.721088]
[1721238808766,0.05851787,3417.6,3417.4,2.92618]
[1721238808966,0.05846836,3417.5,3417.4,2.92618]
[1721238809164,2.92561,3418.1,3417.4,2.92618]
[1721238809368,0.05852126,3418.0,3417.4,2.92618]
[1721238810152,2.92552,3418.2,3417.4,2.92618]
[1721238810383,0.0585017,3418.1,3417.4,2.92618]
[1721238812679,0.0585017,3418.1,3417.3,5.42616]
[1721238812680,2.9841217,3418.1,3417.3,5.42616]
[1721238814504,2.92569,3418.0,3417.3,5.42616]
[1721238815008,0.05846428,3417.9,3417.3,5.42616]
[1721238816278,2.92588,3417.8,3417.3,2.4999]
[1721238816478,2.92595,3417.7,3417.3,2.4999]
[1721238816688,0.05844688,3417.7,3417.6,1.049]
[1721238817202,2.92579,3417.9,3417.6,1.049]
[1721238817405,2.92579,3417.9,3417.3,2.4999]
[1721238817576,2.92579,3417.9,3417.8,1.049]
[1721238818274,2.92559,3418.2,3417.8,1.049]
[1721238818495,2.92559,3418.2,3418.0,1.049]
[1721238818685,3.53914877,3418.4,3418.0,1.049]
[1721238819199,2.92545,3418.3,3418.2,1.049]
[1721238820280,2.92545,3418.3,3417.8,2.4329]
[1721238820702,3.53920877,3418.3,3417.8,2.4329]
[1721238822210,0.61375877,3418.2,3417.8,2.4329]
[1721238824079,0.61375877,3418.1,3417.8,2.4329]
[1721238825308,0.61375877,3418.0,3417.8,2.4329]
[1721238825821,0.61375877,3418.1,3417.8,2.4329]
[1721238826187,0.61375877,3418.0,3417.8,2.4329]
[1721238827410,0.61375877,3417.9,3417.8,2.4329]
[1721238827617,0.9224753,3418.1,3417.8,2.4329]
[1721238827618,3.53944877,3418.0,3417.8,2.4329]
[1721238827820,3.53944877,3418.0,3417.3,2.4417]
[1721238827821,3.53952877,3417.9,3417.3,2.4417]
[1721238828175,0.61375877,3417.8,3417.3,2.4417]
[1721238829123,3.53962877,3417.8,3417.3,2.4417]
[1721238829529,0.61375877,3417.7,3417.3,2.4417]
[1721238829825,3.53969877,3417.7,3417.3,2.4417]
[1721238830196,0.61375877,3417.6,3417.3,2.4417]
[1721238830435,0.61375877,3417.6,3417.0,7.79359]
[1721238830731,2.92594,3417.7,3417.0,7.79359]
[1721238830732,0.61375877,3417.5,3417.0,7.79359]
[1721238831387,0.05721931,3417.4,3417.0,11.792087]
[1721238831584,0.05721931,3417.4,3417.0,8.865597]
[1721238831789,0.61375877,3417.6,3417.0,11.792077]
[1721238832025,0.05721375,3417.3,3417.0,11.792077]
[1721238832183,0.61375877,3417.5,3417.0,8.865597]
[1721238832386,0.05720191,3417.2,3417.0,8.865597]
[1721238832594,0.61375877,3417.5,3417.0,8.865597]
[1721238832786,0.05719007,3417.1,3417.0,8.865597]
[1721238833046,0.61375877,3417.5,3417.0,8.865597]
[1721238833637,0.61375877,3417.5,3417.0,8.865587]
[1721238833638,0.67098436,3417.4,3417.0,8.865587]
[1721238833934,0.67098436,3417.4,3417.1,0.32644341]
[1721238834492,0.61375877,3417.3,3417.1,0.32644341]
[1721238834717,0.66901533,3417.3,3417.1,0.32644341]
[1721238835213,0.61375877,3417.2,3417.1,0.32644341]
[1721238835689,0.66898152,3417.2,3417.1,0.32644341]
[1721238836513,0.66898152,3417.2,3417.0,4.8671]
[1721238836900,0.61375877,3417.1,3417.0,2.3501]
[1721238837327,0.66908177,3417.1,3416.6,2.455]
[1721238837632,0.61375877,3416.9,3416.3,5.38209]
[1721238837840,0.61375877,3416.5,3416.3,2.455]
[1721238838191,0.66890394,3416.4,3416.0,2.455]
[1721238838531,0.61375877,3416.3,3416.0,2.455]
[1721238838841,0.9224753,3416.1,3416.0,2.455]
[1721238839143,0.97751003,3416.1,3416.0,2.455]
[1721238839430,0.66882317,3416.1,3416.0,2.455]
[1721238839997,0.05503473,3416.1,3416.0,2.455]
[1721238840504,0.66882317,3416.1,3416.0,3.505]
[1721238840841,0.05503473,3416.1,3416.0,3.505]
[1721238841345,0.61378844,3416.2,3416.0,3.505]
[1721238841552,0.05489633,3416.1,3416.0,2.455]
[1721238841698,0.61378844,3416.3,3416.0,3.505]
[1721238841899,0.61378844,3416.3,3416.2,1.05]
[1721238842209,0.61378844,3416.4,3416.2,1.05]
[1721238842408,0.61378844,3416.4,3416.3,1.05]
[1721238842609,3.8494553,3416.5,3416.3,1.05]
[1721238843004,0.61324189,3416.4,3416.3,1.05]
[1721238843809,0.9224753,3416.5,3416.3,1.05]
[1721238843810,0.61324189,3416.5,3416.3,1.05]
[1721238845306,3.54012189,3416.6,3416.3,1.05]
[1721238845652,3.54012189,3416.6,3416.5,1.05]
[1721238845842,0.61324189,3416.6,3416.5,1.05]
[1721238846198,0.66638131,3416.6,3416.5,1.05]
[1721238846526,0.66638131,3416.6,3416.4,1.05]
[1721238846833,3.54026189,3416.5,3416.4,1.05]
[1721238847202,3.59327679,3416.5,3416.4,1.05]
[1721238849252,2.9800349,3416.5,3416.4,1.05]
[1721238849897,0.0530149,3416.5,3416.4,1.05]
[1721238850497,0.61324189,3416.8,3416.4,1.05]
[1721238850847,0.61324189,3416.8,3416.1,5.3241]
[1721238850848,0.05303858,3416.7,3416.6,1.05]
[1721238851341,0.05303858,3416.7,3415.5,5.26762]
[1721238851342,2.92719,3416.3,3415.5,5.26762]
[1721238851551,3.53939902,3416.4,3415.9,1.05]
[1721238851713,0.05298759,3416.2,3415.9,1.05]
[1721238851911,0.66529846,3416.3,3415.9,1.05]
[1721238852265,2.92758,3415.8,3415.5,2.3398]
[1721238852743,0.05283469,3415.7,3415.5,2.3398]
[1721238853102,2.92758,3415.8,3415.5,2.3398]
[1721238853334,0.05283469,3415.7,3415.5,2.3398]
[1721238853694,3.53973902,3416.0,3415.5,2.3398]
[1721238853695,3.53973902,3416.0,3415.6,1.05]
[1721238853899,0.05285839,3415.9,3415.6,1.05]
[1721238854342,0.05285839,3415.9,3415.5,2.3398]
[1721238854531,2.92762,3415.8,3415.0,2.9282]
[1721238854698,2.92762,3415.8,3415.0,2.92819]
[1721238854904,0.05270584,3415.7,3415.0,2.92819]
[1721238855100,0.05270584,3415.7,3415.0,3.29034927]
[1721238855638,0.05270584,3415.7,3415.3,2.92799]
[1721238855838,0.05270584,3415.7,3415.4,2.3404]
[1721238856049,6.46699902,3416.1,3415.4,2.3404]
[1721238856337,5.8547,3416.1,3415.4,2.3404]
[1721238856542,0.05274139,3416.0,3415.4,2.3404]
[1721238857936,2.98016139,3416.0,3415.4,2.3404]
[1721238859261,2.9275,3415.9,3415.0,4.8728]
[1721238859495,0.05275816,3415.8,3415.0,4.8728]
[1721238859637,2.92766,3415.7,3415.0,7.801]
[1721238859981,0.05273446,3415.6,3415.0,7.801]
[1721238861067,0.05273446,3415.6,3415.2,2.92806]
[1721238861273,2.9275,3415.9,3415.2,3.708146]
[1721238861443,0.05275816,3415.8,3415.2,3.708146]
[1721238861947,0.05275816,3415.8,3415.2,0.780086]
[1721238862156,0.05275816,3415.8,3415.1,2.92811]
[1721238862736,2.98032816,3415.8,3415.1,2.92811]
[1721238864092,2.98032816,3415.8,3415.2,2.92808]
[1721238866079,0.05275816,3415.8,3415.2,2.92808]
[1721238866253,2.92735,3416.1,3415.2,2.92808]
[1721238866455,2.92735,3416.1,3415.3,1.072899]
[1721238866456,2.92749,3415.9,3415.3,1.072899]
[1721238866676,0.05273614,3415.8,3415.3,1.072899]
[1721238868745,0.05273614,3415.8,3415.2,2.92808]
[1721238871468,0.05273614,3415.8,3415.2,2.92802]
[1721238871648,0.05273614,3415.8,3415.2,5.85604]
[1721238872295,0.05273614,3415.8,3415.2,2.92802]
[1721238872491,0.05273614,3415.8,3415.4,2.92786]
[1721238872793,0.05271192,3415.7,3415.5,2.9278]
[1721238873142,2.92719,3416.3,3415.5,2.9278]
[1721238873340,0.05270007,3415.6,3415.5,2.9278]
[1721238873543,0.61229902,3416.4,3415.5,2.9278]
[1721238873544,0.61229902,3416.4,3415.6,2.92768]
[1721238873779,2.92699,3416.5,3415.8,2.92756]
[1721238873941,2.92699,3416.5,3415.9,0.585524]
[1721238873942,0.0528349,3416.3,3415.9,0.585524]
[1721238874346,2.92699,3416.5,3416.2,1.05]
[1721238875481,3.53913902,3416.7,3416.2,1.05]
[1721238875482,0.61229902,3416.6,3416.2,1.05]
[1721238875844,3.53913902,3416.7,3416.2,1.05]
[1721238876177,0.05263061,3416.6,3416.2,1.05]
[1721238876543,2.97953061,3416.6,3416.2,1.05]
[1721238877476,3.59182963,3416.6,3416.2,1.05]
[1721238877774,2.92697,3416.5,3416.2,1.05]
[1721238878184,0.05260691,3416.4,3416.2,1.05]
[1721238878370,0.05260691,3416.4,3416.0,1.05]
[1721238878371,2.97966691,3416.4,3416.0,1.05]
[1721238878887,2.97966691,3416.4,3415.8,1.05]
[1721238879187,3.59196593,3416.4,3415.8,1.05]
[1721238879657,5.92236593,3416.4,3415.8,1.05]
[1721238880445,0.61229902,3416.3,3415.8,1.05]
[1721238880646,0.0503101,3416.2,3415.8,1.05]
[1721238880854,0.61229902,3416.3,3415.8,1.05]
[1721238881256,0.66260912,3416.2,3415.8,1.05]
[1721238881685,0.66260912,3416.2,3416.0,1.05]
[1721238882089,0.0503101,3416.2,3416.0,1.05]
[1721238882390,0.61229902,3416.2,3416.0,1.447765]
[1721238882594,0.61229902,3416.2,3416.1,2.46]
[1721238882757,0.61229902,3416.4,3416.1,2.46]
[1721238882951,0.61229902,3416.4,3416.3,1.05]
[1721238883196,0.91844853,3416.5,3416.3,1.05]
[1721238883367,0.91844853,3416.5,3416.4,1.05]
[1721238883768,1.2761813,3416.5,3416.4,1.05]
[1721238884292,1.2761813,3416.5,3416.1,2.46]
[1721238884293,1.2761813,3416.5,3416.2,1.05]
[1721238884456,0.92057293,3416.4,3416.2,1.05]
[1721238886993,0.92057293,3416.4,3416.0,1.05]
[1721238887178,0.61370458,3416.1,3416.0,1.05]
[1721238887367,0.92057293,3416.2,3415.8,1.05]
[1721238887687,0.61375538,3415.9,3415.8,1.05]
[1721238890103,2.93865538,3415.9,3415.2,7.38]
[1721238890401,0.92085583,3415.3,3414.7,7.38]